[Event "December 12 Early 2023"]
[Site "https://www.chess.com"]
[Date "2023.12.12"]
[Round "11"]
[White "Timerkhanov, Alexander"]
[Black "Shevchuk, Olexandr"]
[Result "1/2-1/2"]
[Board "46"]
[TimeControl "180+1"]
[WhiteFideId "24177938"]
[BlackFideId "14113775"]
[WhiteElo "2673"]
[BlackElo "2502"]
[WhiteTeam "RUS"]
[BlackTeam "UKR"]
[WhiteClock "0:00:13"]
[BlackClock "0:00:15"]

1. d4 {[%clk 0:03:00]}  d5 {[%clk 0:02:59]} 2. Bf4 {[%clk 0:02:59]}  e6 {[%clk 0:03:00]} 3. e3 {[%clk 0:02:59]}  Bd6 {[%clk 0:03:00]} 4. Bg3 {[%clk 0:03:00]}  Nf6 {[%clk 0:03:00]} 5. Nd2 {[%clk 0:02:59]}  c5 {[%clk 0:02:55]} 6. c3 {[%clk 0:02:59]}  O-O {[%clk 0:02:55]} 7. Ngf3 {[%clk 0:02:57]}  b6 {[%clk 0:02:56]} 8. Bd3 {[%clk 0:02:55]}  Ba6 {[%clk 0:02:56]} 9. Bxa6 {[%clk 0:02:54]}  Nxa6 {[%clk 0:02:56]} 10. O-O {[%clk 0:02:53]}  Nb8 {[%clk 0:02:55]} 11. Ne5 {[%clk 0:02:50]}  Qc7 {[%clk 0:02:54]} 12. Qe2 {[%clk 0:02:47]}  Nc6 {[%clk 0:02:54]} 13. f4 {[%clk 0:02:47]}  Ne7 {[%clk 0:02:53]} 14. Bh4 {[%clk 0:02:46]}  Ne4 {[%clk 0:02:48]} 15. Nxe4 {[%clk 0:02:45]}  dxe4 {[%clk 0:02:49]} 16. Bxe7 {[%clk 0:02:42]}  Qxe7 {[%clk 0:02:50]} 17. Qc2 {[%clk 0:02:38]}  f5 {[%clk 0:02:45]} 18. Qb3 {[%clk 0:02:26]}  Bxe5 {[%clk 0:02:36]} 19. fxe5 {[%clk 0:02:25]}  cxd4 {[%clk 0:02:37]} 20. cxd4 {[%clk 0:02:24]}  Qd7 {[%clk 0:02:32]} 21. Rac1 {[%clk 0:02:23]}  g6 {[%clk 0:02:33]} 22. Rc3 {[%clk 0:02:19]}  Rfc8 {[%clk 0:02:32]} 23. Rfc1 {[%clk 0:02:19]}  Rxc3 {[%clk 0:02:32]} 24. Qxc3 {[%clk 0:02:18]}  Kf8 {[%clk 0:02:25]} 25. Qc7 {[%clk 0:02:05]}  Ke8 {[%clk 0:02:17]} 26. Qc4 {[%clk 0:01:02]}  Rd8 {[%clk 0:02:09]} 27. g3 {[%clk 0:01:02]}  h6 {[%clk 0:02:07]} 28. a4 {[%clk 0:00:58]}  Rb8 {[%clk 0:01:50]} 29. Qc7 {[%clk 0:00:44]}  Rd8 {[%clk 0:01:48]} 30. b3 {[%clk 0:00:43]}  Ke7 {[%clk 0:01:31]} 31. Kf2 {[%clk 0:00:41]}  g5 {[%clk 0:01:28]} 32. Ke2 {[%clk 0:00:40]}  Ke8 {[%clk 0:01:19]} 33. h4 {[%clk 0:00:38]}  Qe7 {[%clk 0:01:04]} 34. Qxe7+ {[%clk 0:00:32]}  Kxe7 {[%clk 0:01:05]} 35. hxg5 {[%clk 0:00:32]}  hxg5 {[%clk 0:01:05]} 36. Rh1 {[%clk 0:00:33]}  Rc8 {[%clk 0:00:53]} 37. Rh7+ {[%clk 0:00:32]}  Kd8 {[%clk 0:00:49]} 38. Kd2 {[%clk 0:00:30]}  Rc7 {[%clk 0:00:47]} 39. Rh8+ {[%clk 0:00:27]}  Kd7 {[%clk 0:00:47]} 40. Rg8 {[%clk 0:00:28]}  g4 {[%clk 0:00:43]} 41. Rg6 {[%clk 0:00:24]}  Ke7 {[%clk 0:00:22]} 42. Rh6 {[%clk 0:00:24]}  Kd7 {[%clk 0:00:23]} 43. Rh8 {[%clk 0:00:23]}  Ke7 {[%clk 0:00:20]} 44. Rh7+ {[%clk 0:00:18]}  Kd8 {[%clk 0:00:20]} 45. Rh6 {[%clk 0:00:19]}  Ke7 {[%clk 0:00:19]} 46. Rh5 {[%clk 0:00:17]}  Kd7 {[%clk 0:00:19]} 47. Rh6 {[%clk 0:00:16]}  Ke7 {[%clk 0:00:19]} 48. Rh8 {[%clk 0:00:16]}  Kd7 {[%clk 0:00:18]} 49. Rf8 {[%clk 0:00:15]}  Ke7 {[%clk 0:00:18]} 50. Rg8 {[%clk 0:00:16]}  Kd7 {[%clk 0:00:16]} 51. Rg6 {[%clk 0:00:14]}  Ke7 {[%clk 0:00:16]} 52. Rf6 {[%clk 0:00:14]}  Rd7 {[%clk 0:00:15]} 53. Rh6 {[%clk 0:00:13]}  Rc7 {[%clk 0:00:15]} 1/2-1/2

[Event "December 12 Early 2023"]
[Site "https://www.chess.com"]
[Date "2023.12.12"]
[Round "11"]
[White "JG-17"]
[Black "Schnaider, Ilan"]
[Result "0-1"]
[Board "47"]
[TimeControl "180+1"]
[BlackFideId "169013"]
[WhiteElo "2496"]
[BlackElo "2663"]
[BlackTeam "ARG"]
[WhiteClock "0:00:20"]
[BlackClock "0:01:02"]

1. e4 {[%clk 0:03:00]}  c5 {[%clk 0:02:59]} 2. Nf3 {[%clk 0:03:00]}  d6 {[%clk 0:02:59]} 3. d4 {[%clk 0:03:01]}  cxd4 {[%clk 0:03:00]} 4. Nxd4 {[%clk 0:03:01]}  Nf6 {[%clk 0:03:00]} 5. Nc3 {[%clk 0:03:02]}  a6 {[%clk 0:03:01]} 6. h3 {[%clk 0:03:02]}  Nc6 {[%clk 0:03:00]} 7. g4 {[%clk 0:02:57]}  g6 {[%clk 0:03:01]} 8. Bg2 {[%clk 0:02:57]}  Bg7 {[%clk 0:02:59]} 9. Be3 {[%clk 0:02:58]}  Bd7 {[%clk 0:02:47]} 10. Qd2 {[%clk 0:02:56]}  Ne5 {[%clk 0:02:46]} 11. b3 {[%clk 0:02:52]}  Rc8 {[%clk 0:02:42]} 12. f4 {[%clk 0:02:49]}  Nc6 {[%clk 0:02:41]} 13. O-O-O {[%clk 0:02:45]}  Qa5 {[%clk 0:02:37]} 14. Kb1 {[%clk 0:02:33]}  Nb4 {[%clk 0:02:31]} 15. a4 {[%clk 0:02:29]}  Qc7 {[%clk 0:02:11]} 16. Ncb5 {[%clk 0:02:02]}  axb5 {[%clk 0:02:05]} 17. Qxb4 {[%clk 0:02:02]}  bxa4 {[%clk 0:02:05]} 18. bxa4 {[%clk 0:01:40]}  e5 {[%clk 0:01:44]} 19. fxe5 {[%clk 0:01:39]}  dxe5 {[%clk 0:01:45]} 20. Nb5 {[%clk 0:01:40]}  Qxc2+ {[%clk 0:01:15]} 21. Ka1 {[%clk 0:01:39]}  Bf8 {[%clk 0:01:12]} 22. Nd6+ {[%clk 0:01:25]}  Bxd6 {[%clk 0:01:12]} 23. Rxd6 {[%clk 0:01:26]}  Qxg2 {[%clk 0:01:08]} 24. Rhd1 {[%clk 0:01:18]}  O-O {[%clk 0:01:04]} 25. Rxf6 {[%clk 0:01:16]}  Be6 {[%clk 0:01:04]} 26. Bh6 {[%clk 0:00:20]}  Qa2# {[%clk 0:01:02]} 0-1

[Event "December 12 Early 2023"]
[Site "https://www.chess.com"]
[Date "2023.12.12"]
[Round "11"]
[White "Kazakouski, Valery"]
[Black "Semenova, Alina"]
[Result "1-0"]
[Board "52"]
[TimeControl "180+1"]
[WhiteFideId "13507443"]
[BlackFideId "24113875"]
[WhiteElo "2823"]
[BlackElo "2250"]
[WhiteTeam "LTU"]
[BlackTeam "RUS"]
[WhiteClock "0:02:19"]
[BlackClock "0:01:48"]

1. Nf3 {[%clk 0:03:00]}  Nf6 {[%clk 0:02:54]} 2. c4 {[%clk 0:03:00]}  e6 {[%clk 0:02:54]} 3. g3 {[%clk 0:03:01]}  d5 {[%clk 0:02:54]} 4. Bg2 {[%clk 0:03:01]}  Be7 {[%clk 0:02:54]} 5. O-O {[%clk 0:03:01]}  O-O {[%clk 0:02:55]} 6. b3 {[%clk 0:03:02]}  Nbd7 {[%clk 0:02:54]} 7. Bb2 {[%clk 0:03:02]}  b6 {[%clk 0:02:53]} 8. Nc3 {[%clk 0:03:01]}  Bb7 {[%clk 0:02:53]} 9. e3 {[%clk 0:03:01]}  c5 {[%clk 0:02:53]} 10. Qe2 {[%clk 0:03:01]}  a6 {[%clk 0:02:49]} 11. Rad1 {[%clk 0:03:01]}  dxc4 {[%clk 0:02:47]} 12. bxc4 {[%clk 0:03:01]}  Qc7 {[%clk 0:02:45]} 13. Ne1 {[%clk 0:03:01]}  Bxg2 {[%clk 0:02:43]} 14. Nxg2 {[%clk 0:03:02]}  Rfd8 {[%clk 0:02:43]} 15. g4 {[%clk 0:03:02]}  Nf8 {[%clk 0:02:41]} 16. h4 {[%clk 0:02:55]}  N6d7 {[%clk 0:02:36]} 17. f4 {[%clk 0:02:53]}  Nb8 {[%clk 0:02:21]} 18. h5 {[%clk 0:02:50]}  Nc6 {[%clk 0:02:20]} 19. h6 {[%clk 0:02:48]}  g6 {[%clk 0:02:20]} 20. Ne4 {[%clk 0:02:47]}  f5 {[%clk 0:02:13]} 21. Nf6+ {[%clk 0:02:44]}  Bxf6 {[%clk 0:02:12]} 22. Bxf6 {[%clk 0:02:44]}  Rd7 {[%clk 0:02:12]} 23. Nh4 {[%clk 0:02:41]}  Nb4 {[%clk 0:02:07]} 24. d3 {[%clk 0:02:30]}  b5 {[%clk 0:02:01]} 25. gxf5 {[%clk 0:02:26]}  exf5 {[%clk 0:02:01]} 26. Nxf5 {[%clk 0:02:20]}  gxf5 {[%clk 0:01:55]} 27. Qg2+ {[%clk 0:02:20]}  Ng6 {[%clk 0:01:48]} 28. Qxa8+ {[%clk 0:02:19]} 1-0

[Event "December 12 Early 2023"]
[Site "https://www.chess.com"]
[Date "2023.12.12"]
[Round "11"]
[White "Shuvalova, Polina"]
[Black "Hajiyev, Kanan"]
[Result "0-1"]
[Board "54"]
[TimeControl "180+1"]
[WhiteFideId "24171760"]
[BlackFideId "13404148"]
[WhiteElo "2749"]
[BlackElo "2559"]
[WhiteTeam "RUS"]
[BlackTeam "AZE"]
[WhiteClock "0:00:00"]
[BlackClock "0:00:07"]

1. e4 {[%clk 0:03:00]}  c6 {[%clk 0:03:00]} 2. d4 {[%clk 0:03:00]}  d5 {[%clk 0:03:01]} 3. exd5 {[%clk 0:03:01]}  cxd5 {[%clk 0:03:02]} 4. Bd3 {[%clk 0:03:01]}  a6 {[%clk 0:03:03]} 5. c3 {[%clk 0:03:02]}  Nc6 {[%clk 0:03:03]} 6. Bf4 {[%clk 0:03:00]}  Nf6 {[%clk 0:03:04]} 7. Nd2 {[%clk 0:03:00]}  g6 {[%clk 0:03:03]} 8. Ngf3 {[%clk 0:02:59]}  Bg7 {[%clk 0:03:04]} 9. O-O {[%clk 0:03:00]}  O-O {[%clk 0:03:05]} 10. Re1 {[%clk 0:03:00]}  Bf5 {[%clk 0:03:05]} 11. Qe2 {[%clk 0:03:00]}  Bxd3 {[%clk 0:03:04]} 12. Qxd3 {[%clk 0:03:01]}  e6 {[%clk 0:03:05]} 13. Ne5 {[%clk 0:02:58]}  Nxe5 {[%clk 0:03:05]} 14. Bxe5 {[%clk 0:02:59]}  Ne8 {[%clk 0:02:59]} 15. g3 {[%clk 0:02:53]}  Nd6 {[%clk 0:02:57]} 16. Bxd6 {[%clk 0:02:52]}  Qxd6 {[%clk 0:02:57]} 17. Nf3 {[%clk 0:02:51]}  b5 {[%clk 0:02:55]} 18. a3 {[%clk 0:02:51]}  Rab8 {[%clk 0:02:53]} 19. h4 {[%clk 0:02:26]}  a5 {[%clk 0:02:47]} 20. b4 {[%clk 0:02:25]}  Rfc8 {[%clk 0:02:43]} 21. Rac1 {[%clk 0:02:19]}  Qc6 {[%clk 0:02:33]} 22. h5 {[%clk 0:02:10]}  Qc4 {[%clk 0:02:30]} 23. Qd2 {[%clk 0:02:07]}  Qb3 {[%clk 0:02:26]} 24. h6 {[%clk 0:02:08]}  Bh8 {[%clk 0:02:20]} 25. Re3 {[%clk 0:02:03]}  Qxa3 {[%clk 0:02:14]} 26. Rce1 {[%clk 0:01:58]}  Qa4 {[%clk 0:02:01]} 27. bxa5 {[%clk 0:01:37]}  Qxa5 {[%clk 0:01:58]} 28. Ng5 {[%clk 0:01:37]}  b4 {[%clk 0:01:47]} 29. cxb4 {[%clk 0:01:26]}  Qxb4 {[%clk 0:01:47]} 30. Qe2 {[%clk 0:01:25]}  Bxd4 {[%clk 0:01:42]} 31. Rxe6 {[%clk 0:01:21]}  Qf8 {[%clk 0:01:21]} 32. Re7 {[%clk 0:01:14]}  Rb2 {[%clk 0:01:13]} 33. Qg4 {[%clk 0:00:40]}  Bxf2+ {[%clk 0:01:03]} 34. Kh1 {[%clk 0:00:37]}  Bxe1 {[%clk 0:00:36]} 35. Rxf7 {[%clk 0:00:37]}  Qxh6+ {[%clk 0:00:31]} 36. Nh3 {[%clk 0:00:32]}  Kxf7 {[%clk 0:00:27]} 37. Qd7+ {[%clk 0:00:30]}  Kf6 {[%clk 0:00:25]} 38. Qd6+ {[%clk 0:00:29]}  Kf7 {[%clk 0:00:19]} 39. Qd7+ {[%clk 0:00:28]}  Kg8 {[%clk 0:00:18]} 40. Qxc8+ {[%clk 0:00:27]}  Qf8 {[%clk 0:00:19]} 41. Qe6+ {[%clk 0:00:27]}  Qf7 {[%clk 0:00:18]} 42. Qc8+ {[%clk 0:00:14]}  Kg7 {[%clk 0:00:18]} 43. Nf4 {[%clk 0:00:15]}  Bxg3 {[%clk 0:00:09]} 44. Qc3+ {[%clk 0:00:10]}  Kh6 {[%clk 0:00:05]} 45. Qxg3 {[%clk 0:00:08]}  Qf5 {[%clk 0:00:04]} 46. Qh4+ {[%clk 0:00:05]}  Kg7 {[%clk 0:00:04]} 47. Qe7+ {[%clk 0:00:06]}  Kh6 {[%clk 0:00:05]} 48. Qh4+ {[%clk 0:00:05]}  Kg7 {[%clk 0:00:06]} 49. Qe7+ {[%clk 0:00:06]}  Kg8 {[%clk 0:00:06]} 50. Qe8+ {[%clk 0:00:04]}  Qf8 {[%clk 0:00:06]} 51. Qe6+ {[%clk 0:00:04]}  Qf7 {[%clk 0:00:07]} 52. Qc8+ {[%clk 0:00:05]}  Kg7 {[%clk 0:00:07]} 53. Qc3+ {[%clk 0:00:05]}  Qf6 {[%clk 0:00:08]} 54. Ne6+ {[%clk 0:00:02]}  Kf7 {[%clk 0:00:08]} 55. Nd8+ {[%clk 0:00:01]}  Ke7 {[%clk 0:00:08]} 56. Qc7+ {[%clk 0:00:00]}  Kf8 {[%clk 0:00:07]} 0-1

[Event "December 12 Early 2023"]
[Site "https://www.chess.com"]
[Date "2023.12.12"]
[Round "11"]
[White "Bardyk, Artem"]
[Black "Yelisieiev, Yevhenii"]
[Result "1-0"]
[Board "55"]
[TimeControl "180+1"]
[WhiteFideId "34349979"]
[BlackFideId "14139642"]
[WhiteElo "2745"]
[BlackElo "2570"]
[WhiteTeam "RUS"]
[BlackTeam "GER"]
[WhiteClock "0:00:21"]
[BlackClock "0:00:03"]

1. e4 {[%clk 0:02:58]}  d6 {[%clk 0:02:58]} 2. d4 {[%clk 0:02:57]}  Nf6 {[%clk 0:02:58]} 3. Nc3 {[%clk 0:02:57]}  e5 {[%clk 0:02:58]} 4. dxe5 {[%clk 0:02:52]}  dxe5 {[%clk 0:02:59]} 5. Qxd8+ {[%clk 0:02:52]}  Kxd8 {[%clk 0:02:59]} 6. f4 {[%clk 0:02:53]}  Bb4 {[%clk 0:02:58]} 7. Bd2 {[%clk 0:02:52]}  exf4 {[%clk 0:02:53]} 8. O-O-O {[%clk 0:02:50]}  Nbd7 {[%clk 0:02:52]} 9. Bd3 {[%clk 0:02:40]}  Ng4 {[%clk 0:02:31]} 10. Nh3 {[%clk 0:02:29]}  Ne3 {[%clk 0:02:16]} 11. Bxe3 {[%clk 0:02:25]}  fxe3 {[%clk 0:02:16]} 12. Rhf1 {[%clk 0:02:19]}  f6 {[%clk 0:02:08]} 13. Nd5 {[%clk 0:02:15]}  Bd2+ {[%clk 0:01:50]} 14. Kb1 {[%clk 0:02:11]}  Ne5 {[%clk 0:01:46]} 15. Nhf4 {[%clk 0:02:07]}  Nxd3 {[%clk 0:01:27]} 16. cxd3 {[%clk 0:01:53]}  Bg4 {[%clk 0:01:26]} 17. Rf3 {[%clk 0:01:43]}  Bxf3 {[%clk 0:01:20]} 18. gxf3 {[%clk 0:01:44]}  c6 {[%clk 0:01:12]} 19. Nc3 {[%clk 0:01:38]}  g5 {[%clk 0:01:01]} 20. Nfe2 {[%clk 0:01:32]}  h5 {[%clk 0:00:59]} 21. d4 {[%clk 0:01:28]}  g4 {[%clk 0:00:58]} 22. Rf1 {[%clk 0:01:17]}  Kc7 {[%clk 0:00:44]} 23. Kc2 {[%clk 0:00:55]}  Raf8 {[%clk 0:00:37]} 24. Kd3 {[%clk 0:00:55]}  f5 {[%clk 0:00:36]} 25. e5 {[%clk 0:00:52]}  f4 {[%clk 0:00:33]} 26. Ne4 {[%clk 0:00:51]}  Rhg8 {[%clk 0:00:18]} 27. Nf6 {[%clk 0:00:41]}  gxf3 {[%clk 0:00:18]} 28. Rxf3 {[%clk 0:00:38]}  Rg2 {[%clk 0:00:17]} 29. Nxf4 {[%clk 0:00:35]}  Rxh2 {[%clk 0:00:17]} 30. Ne6+ {[%clk 0:00:35]}  Kb6 {[%clk 0:00:17]} 31. Nxf8 {[%clk 0:00:30]}  e2 {[%clk 0:00:17]} 32. Kxd2 {[%clk 0:00:30]}  h4 {[%clk 0:00:13]} 33. e6 {[%clk 0:00:24]}  h3 {[%clk 0:00:03]} 34. e7 {[%clk 0:00:24]}  Rh1 {[%clk 0:00:02]} 35. Kxe2 {[%clk 0:00:20]}  h2 {[%clk 0:00:03]} 36. Rh3 {[%clk 0:00:20]}  Rb1 {[%clk 0:00:02]} 37. e8=Q {[%clk 0:00:20]}  h1=Q {[%clk 0:00:01]} 38. Rxh1 {[%clk 0:00:19]}  Rxh1 {[%clk 0:00:02]} 39. Qd8+ {[%clk 0:00:19]}  Ka6 {[%clk 0:00:02]} 40. N8d7 {[%clk 0:00:18]}  Rh2+ {[%clk 0:00:03]} 41. Kd3 {[%clk 0:00:19]}  Rxb2 {[%clk 0:00:03]} 42. Nc5+ {[%clk 0:00:18]}  Kb5 {[%clk 0:00:04]} 43. a4+ {[%clk 0:00:19]}  Kb4 {[%clk 0:00:04]} 44. Nxb7 {[%clk 0:00:19]}  Rb3+ {[%clk 0:00:04]} 45. Ke4 {[%clk 0:00:19]}  Kxa4 {[%clk 0:00:04]} 46. Nc5+ {[%clk 0:00:20]}  Ka3 {[%clk 0:00:04]} 47. Nxb3 {[%clk 0:00:21]}  Kxb3 {[%clk 0:00:03]} 48. Qa5 {[%clk 0:00:21]} 1-0

[Event "December 12 Early 2023"]
[Site "https://www.chess.com"]
[Date "2023.12.12"]
[Round "11"]
[White "Tokhirjonova, Gulrukhbegim"]
[Black "Estrada Nieto, Julian"]
[Result "1/2-1/2"]
[Board "57"]
[TimeControl "180+1"]
[WhiteFideId "14203626"]
[BlackFideId "5101018"]
[WhiteElo "2657"]
[BlackElo "2536"]
[WhiteTeam "USA"]
[BlackTeam "ESP"]
[WhiteClock "0:01:02"]
[BlackClock "0:00:23"]

1. e4 {[%clk 0:03:00]}  e5 {[%clk 0:02:59]} 2. Nf3 {[%clk 0:03:00]}  Nc6 {[%clk 0:03:00]} 3. Nc3 {[%clk 0:03:00]}  Nf6 {[%clk 0:02:59]} 4. Bc4 {[%clk 0:03:01]}  Bc5 {[%clk 0:02:59]} 5. d3 {[%clk 0:03:01]}  d6 {[%clk 0:02:59]} 6. h3 {[%clk 0:03:02]}  h6 {[%clk 0:02:58]} 7. Be3 {[%clk 0:02:58]}  Bb6 {[%clk 0:02:58]} 8. Nd5 {[%clk 0:02:58]}  Nxd5 {[%clk 0:02:55]} 9. Bxd5 {[%clk 0:02:58]}  Ne7 {[%clk 0:02:54]} 10. Bb3 {[%clk 0:02:57]}  Ng6 {[%clk 0:02:54]} 11. Qd2 {[%clk 0:02:56]}  Be6 {[%clk 0:02:54]} 12. d4 {[%clk 0:02:52]}  O-O {[%clk 0:02:45]} 13. O-O-O {[%clk 0:02:47]}  Bxb3 {[%clk 0:02:36]} 14. axb3 {[%clk 0:02:46]}  Re8 {[%clk 0:02:35]} 15. dxe5 {[%clk 0:02:40]}  Nxe5 {[%clk 0:02:31]} 16. Nxe5 {[%clk 0:02:40]}  Rxe5 {[%clk 0:02:30]} 17. f3 {[%clk 0:02:38]}  Bxe3 {[%clk 0:02:21]} 18. Qxe3 {[%clk 0:02:39]}  Qe7 {[%clk 0:02:20]} 19. Qc3 {[%clk 0:02:36]}  Re8 {[%clk 0:02:16]} 20. Kb1 {[%clk 0:02:34]}  a5 {[%clk 0:02:00]} 21. Rd4 {[%clk 0:02:32]}  Rc5 {[%clk 0:01:51]} 22. Qd2 {[%clk 0:02:27]}  Re5 {[%clk 0:01:47]} 23. Rd1 {[%clk 0:02:27]}  f5 {[%clk 0:01:45]} 24. exf5 {[%clk 0:02:25]}  Rxf5 {[%clk 0:01:45]} 25. Rd5 {[%clk 0:02:24]}  Qe6 {[%clk 0:01:37]} 26. Qxa5 {[%clk 0:02:18]}  Rxd5 {[%clk 0:01:37]} 27. Rxd5 {[%clk 0:02:17]}  Qe1+ {[%clk 0:01:36]} 28. Ka2 {[%clk 0:01:59]}  Qxa5+ {[%clk 0:01:25]} 29. Rxa5 {[%clk 0:01:58]}  Re2 {[%clk 0:01:26]} 30. c4 {[%clk 0:01:53]}  Rxg2 {[%clk 0:01:23]} 31. Ra7 {[%clk 0:01:53]}  Rg3 {[%clk 0:01:13]} 32. h4 {[%clk 0:01:50]}  Rxf3 {[%clk 0:01:11]} 33. Rxb7 {[%clk 0:01:50]}  g5 {[%clk 0:01:02]} 34. hxg5 {[%clk 0:01:49]}  hxg5 {[%clk 0:01:03]} 35. Rxc7 {[%clk 0:01:19]}  g4 {[%clk 0:01:02]} 36. Rc6 {[%clk 0:01:19]}  Rd3 {[%clk 0:00:42]} 37. c5 {[%clk 0:01:19]}  g3 {[%clk 0:00:40]} 38. cxd6 {[%clk 0:01:07]}  g2 {[%clk 0:00:24]} 39. Rc1 {[%clk 0:01:05]}  Rxd6 {[%clk 0:00:21]} 40. Rg1 {[%clk 0:01:06]}  Ra6+ {[%clk 0:00:20]} 41. Kb1 {[%clk 0:01:04]}  Rg6 {[%clk 0:00:21]} 42. b4 {[%clk 0:01:04]}  Kf7 {[%clk 0:00:22]} 43. b5 {[%clk 0:01:04]}  Ke6 {[%clk 0:00:22]} 44. b6 {[%clk 0:01:04]}  Kd7 {[%clk 0:00:21]} 45. Kc2 {[%clk 0:00:59]}  Kc6 {[%clk 0:00:21]} 46. Kd2 {[%clk 0:00:59]}  Kxb6 {[%clk 0:00:21]} 47. Ke2 {[%clk 0:00:59]}  Kb5 {[%clk 0:00:21]} 48. Kf2 {[%clk 0:01:00]}  Kb4 {[%clk 0:00:21]} 49. Rxg2 {[%clk 0:01:01]}  Rxg2+ {[%clk 0:00:22]} 50. Kxg2 {[%clk 0:01:02]}  Kb3 {[%clk 0:00:22]} 51. Kf3 {[%clk 0:01:02]}  Kxb2 {[%clk 0:00:23]} 1/2-1/2

[Event "December 12 Early 2023"]
[Site "https://www.chess.com"]
[Date "2023.12.12"]
[Round "11"]
[White "Kislinsky, Alexey"]
[Black "Play, Gilles"]
[Result "1-0"]
[Board "58"]
[TimeControl "180+1"]
[WhiteFideId "14108801"]
[BlackFideId "45130892"]
[WhiteElo "2650"]
[BlackElo "2527"]
[WhiteTeam "CZE"]
[BlackTeam "FRA"]
[WhiteClock "0:00:27"]
[BlackClock "0:01:10"]

1. e4 {[%clk 0:03:00]}  d5 {[%clk 0:02:58]} 2. exd5 {[%clk 0:03:01]}  Nf6 {[%clk 0:02:59]} 3. Bb5+ {[%clk 0:03:00]}  Bd7 {[%clk 0:02:58]} 4. Bxd7+ {[%clk 0:03:00]}  Qxd7 {[%clk 0:02:58]} 5. d4 {[%clk 0:03:01]}  Qxd5 {[%clk 0:02:57]} 6. Nf3 {[%clk 0:03:02]}  Nc6 {[%clk 0:02:57]} 7. O-O {[%clk 0:03:02]}  O-O-O {[%clk 0:02:57]} 8. c3 {[%clk 0:02:55]}  e5 {[%clk 0:02:54]} 9. Qa4 {[%clk 0:02:55]}  exd4 {[%clk 0:02:53]} 10. cxd4 {[%clk 0:02:54]}  Nxd4 {[%clk 0:02:51]} 11. Nxd4 {[%clk 0:02:48]}  Qxd4 {[%clk 0:02:51]} 12. Qb3 {[%clk 0:02:41]}  Qh4 {[%clk 0:02:29]} 13. Nd2 {[%clk 0:02:06]}  Bd6 {[%clk 0:02:22]} 14. Nf3 {[%clk 0:02:03]}  Qh5 {[%clk 0:02:22]} 15. h3 {[%clk 0:02:00]}  g5 {[%clk 0:02:11]} 16. Nxg5 {[%clk 0:01:03]}  Rhg8 {[%clk 0:02:05]} 17. Nxf7 {[%clk 0:01:03]}  Rxg2+ {[%clk 0:01:40]} 18. Kxg2 {[%clk 0:01:00]}  Rg8+ {[%clk 0:01:40]} 19. Kh1 {[%clk 0:00:43]}  Bg3 {[%clk 0:01:31]} 20. Qe6+ {[%clk 0:00:34]}  Kb8 {[%clk 0:01:29]} 21. Ng5 {[%clk 0:00:35]}  Re8 {[%clk 0:01:25]} 22. Qxf6 {[%clk 0:00:31]}  Qe2 {[%clk 0:01:18]} 23. Be3 {[%clk 0:00:28]}  Rxe3 {[%clk 0:01:10]} 24. Qd8# {[%clk 0:00:27]} 1-0

[Event "December 12 Early 2023"]
[Site "https://www.chess.com"]
[Date "2023.12.12"]
[Round "11"]
[White "Berezin, Viktor"]
[Black "Renjith, Sravan"]
[Result "1-0"]
[Board "60"]
[TimeControl "180+1"]
[WhiteFideId "14107872"]
[BlackFideId "4306783"]
[WhiteElo "2512"]
[BlackElo "2635"]
[WhiteTeam "UKR"]
[BlackTeam "NZL"]
[WhiteClock "0:00:29"]
[BlackClock "0:01:34"]

1. d4 {[%clk 0:02:57]}  a6 {[%clk 0:03:00]} 2. Nf3 {[%clk 0:02:57]}  b5 {[%clk 0:03:00]} 3. e3 {[%clk 0:02:55]}  Bb7 {[%clk 0:03:00]} 4. c4 {[%clk 0:02:55]}  b4 {[%clk 0:02:58]} 5. a3 {[%clk 0:02:50]}  e6 {[%clk 0:02:55]} 6. axb4 {[%clk 0:02:50]}  Bxb4+ {[%clk 0:02:56]} 7. Bd2 {[%clk 0:02:50]}  Be7 {[%clk 0:02:51]} 8. Nc3 {[%clk 0:02:50]}  f5 {[%clk 0:02:51]} 9. Qb3 {[%clk 0:02:42]}  Qc8 {[%clk 0:02:51]} 10. Bd3 {[%clk 0:02:25]}  Nf6 {[%clk 0:02:51]} 11. Ne5 {[%clk 0:02:22]}  O-O {[%clk 0:02:50]} 12. f4 {[%clk 0:02:19]}  Nc6 {[%clk 0:02:43]} 13. O-O {[%clk 0:02:14]}  d6 {[%clk 0:02:36]} 14. Nf3 {[%clk 0:02:12]}  Rb8 {[%clk 0:02:32]} 15. Qd1 {[%clk 0:02:11]}  Nb4 {[%clk 0:02:32]} 16. Bb1 {[%clk 0:02:10]}  c5 {[%clk 0:02:32]} 17. d5 {[%clk 0:02:03]}  exd5 {[%clk 0:02:31]} 18. cxd5 {[%clk 0:02:03]}  Nfxd5 {[%clk 0:02:31]} 19. Nxd5 {[%clk 0:01:44]}  Nxd5 {[%clk 0:02:31]} 20. e4 {[%clk 0:01:40]}  fxe4 {[%clk 0:02:29]} 21. Bxe4 {[%clk 0:01:40]}  Ne3 {[%clk 0:02:20]} 22. Qb3+ {[%clk 0:01:23]}  d5 {[%clk 0:02:09]} 23. Bxh7+ {[%clk 0:01:19]}  Kxh7 {[%clk 0:02:06]} 24. Qxe3 {[%clk 0:01:20]}  Bf6 {[%clk 0:02:06]} 25. Qd3+ {[%clk 0:01:16]}  Kg8 {[%clk 0:02:05]} 26. Rae1 {[%clk 0:01:13]}  Bxb2 {[%clk 0:01:59]} 27. Qg6 {[%clk 0:00:49]}  Qf5 {[%clk 0:01:56]} 28. Qg3 {[%clk 0:00:38]}  Bf6 {[%clk 0:01:51]} 29. Ne5 {[%clk 0:00:29]}  Rbe8 {[%clk 0:01:50]} 30. Ng6 {[%clk 0:00:29]}  Rxe1 {[%clk 0:01:50]} 31. Rxe1 {[%clk 0:00:30]}  Rf7 {[%clk 0:01:40]} 32. Re8+ {[%clk 0:00:29]}  Kh7 {[%clk 0:01:34]} 33. Rh8# {[%clk 0:00:29]} 1-0

[Event "December 12 Early 2023"]
[Site "https://www.chess.com"]
[Date "2023.12.12"]
[Round "11"]
[White "Iljin, Timofey"]
[Black "Skatchkov, Valery"]
[Result "1-0"]
[Board "61"]
[TimeControl "180+1"]
[WhiteFideId "14110180"]
[BlackFideId "24195812"]
[WhiteElo "2511"]
[BlackElo "2629"]
[WhiteTeam "UKR"]
[BlackTeam "RUS"]
[WhiteClock "0:00:48"]
[BlackClock "0:01:16"]

1. e4 {[%clk 0:02:59]}  e5 {[%clk 0:02:59]} 2. Nf3 {[%clk 0:02:59]}  d5 {[%clk 0:03:00]} 3. d4 {[%clk 0:03:00]}  dxe4 {[%clk 0:02:59]} 4. Nxe5 {[%clk 0:02:59]}  Bd6 {[%clk 0:02:59]} 5. Nc4 {[%clk 0:02:57]}  Nc6 {[%clk 0:02:59]} 6. Nxd6+ {[%clk 0:02:56]}  Qxd6 {[%clk 0:02:58]} 7. c3 {[%clk 0:02:57]}  Nge7 {[%clk 0:02:58]} 8. Be2 {[%clk 0:02:57]}  O-O {[%clk 0:02:58]} 9. O-O {[%clk 0:02:57]}  Be6 {[%clk 0:02:58]} 10. Nd2 {[%clk 0:02:56]}  f5 {[%clk 0:02:58]} 11. Nc4 {[%clk 0:02:52]}  Qd7 {[%clk 0:02:56]} 12. Bf4 {[%clk 0:02:43]}  Nd5 {[%clk 0:02:54]} 13. Be5 {[%clk 0:02:32]}  b5 {[%clk 0:02:47]} 14. Ne3 {[%clk 0:02:24]}  Nxe3 {[%clk 0:02:46]} 15. fxe3 {[%clk 0:02:25]}  Nxe5 {[%clk 0:02:46]} 16. dxe5 {[%clk 0:02:23]}  Qc6 {[%clk 0:02:47]} 17. Qd4 {[%clk 0:02:18]}  Rfd8 {[%clk 0:02:43]} 18. Qb4 {[%clk 0:02:17]}  Rab8 {[%clk 0:02:43]} 19. Rfd1 {[%clk 0:02:15]}  Qb6 {[%clk 0:02:22]} 20. Kf2 {[%clk 0:02:03]}  a5 {[%clk 0:01:46]} 21. Qe7 {[%clk 0:01:59]}  Re8 {[%clk 0:01:42]} 22. Qh4 {[%clk 0:01:26]}  Qc5 {[%clk 0:01:40]} 23. Qf4 {[%clk 0:01:22]}  Bc4 {[%clk 0:01:30]} 24. Rd7 {[%clk 0:01:14]}  b4 {[%clk 0:01:25]} 25. Bxc4+ {[%clk 0:00:50]}  Qxc4 {[%clk 0:01:16]} 26. Qg5 {[%clk 0:00:48]} 1-0